[Event "RUS-ch Men Rapid 2019"]
[Site "Sochi"]
[Date "2019.10.15"]
[Round "1.17"]
[White "Pridorozhni, Aleksei"]
[Black "Kirillov, Anton"]
[Result "1-0"]
[ECO "B23"]
[WhiteElo "2554"]
[BlackElo "2039"]
[Annotator "ChessBase"]
[PlyCount "31"]
[EventDate "2019.10.15"]
[EventType "swiss"]
[EventCountry "RUS"]
[SourceTitle "playchess.com"]
[Source "ChessBase"]
[SourceQuality "1"]
[TimeControl "900+10"]

1. e4 {[%emt 0:00:00]} c5 {[%emt 0:00:00]} 2. Nc3 {[%emt 0:00:00]} d6 {[%emt 0:00:00]} 3. f4 {[%emt 0:00:08]} g6 {[%emt 0:00:17]} 4. d4 {[%emt 0:00:03]} cxd4 {[%emt 0:00:16]} 5. Qxd4 {[%emt 0:00:02]} Nf6 {[%emt 0:00:39]} 6. Nf3 {[%emt 0:00:02]} Nc6 {[%emt 0:00:11]} 7. Qf2 {[%emt 0:00:03]} Bg7 {[%emt 0:00:10]} 8. Bd3 {[%emt 0:00:02]} O-O {[%emt 0:00:42]} 9. O-O {[%emt 0:00:03]} Bg4 {[%emt 0:01:29]} 10. Ne1 {[%emt 0:00:46]} a6 {[%emt 0:02:11]} 11. h3 {[%emt 0:00:53]} Bd7 {[%emt 0:00:01]} 12. Nf3 {[%emt 0:00:03]} b5 {[%emt 0:01:26]} 13. Be3 {[%emt 0:00:48]} Qc7 {[%emt 0:03:25]} 14. Rae1 {[%emt 0:00:43]} e6 15. Qh4 Ne7 {[%emt 0:02:23]} 16. Bd4 {[%emt 0:01:16]} 1-0

[Event "RUS-ch Men Rapid 2019"]
[Site "Sochi"]
[Date "2019.10.15"]
[Round "1.18"]
[White "Mumdgan, Suren"]
[Black "Yuffa, Daniil"]
[Result "0-1"]
[ECO "E16"]
[WhiteElo "2039"]
[BlackElo "2552"]
[Annotator "ChessBase"]
[PlyCount "179"]
[EventDate "2019.10.15"]
[EventType "swiss"]
[EventCountry "RUS"]
[SourceTitle "playchess.com"]
[Source "ChessBase"]
[SourceQuality "1"]
[TimeControl "900+10"]

1. d4 {[%emt 0:00:00]} Nf6 {[%emt 0:00:00]} 2. c4 {[%emt 0:00:00]} e6 {[%emt 0:00:00]} 3. Nf3 {[%emt 0:00:00]} Bb4+ {[%emt 0:00:01]} 4. Bd2 {[%emt 0:00:05]} Qe7 {[%emt 0:00:23]} 5. e3 {[%emt 0:00:14]} Bxd2+ {[%emt 0:01:32]} 6. Qxd2 {[%emt 0:00:07]} O-O {[%emt 0:00:08]} 7. Nc3 {[%emt 0:00:09]} d6 {[%emt 0:00:10]} 8. Be2 {[%emt 0:01:21]} e5 {[%emt 0:00:02]} 9. dxe5 {[%emt 0:00:40]} dxe5 {[%emt 0:00:03]} 10. Rd1 {[%emt 0:00:17]} Bg4 {[%emt 0:01:51]} 11. O-O {[%emt 0:01:53]} Nbd7 {[%emt 0:01:49]} 12. Nd5 {[%emt 0:00:49]} Nxd5 {[%emt 0:02:32]} 13. Qxd5 {[%emt 0:00:04]} c6 {[%emt 0:01:24]} 14. Qd6 {[%emt 0:00:10]} Qxd6 {[%emt 0:01:11]} 15. Rxd6 {[%emt 0:00:01]} a5 {[%emt 0:00:05]} 16. Nd4 {[%emt 0:01:29]} Bxe2 {[%emt 0:02:44]} 17. Nxe2 {[%emt 0:00:01]} Nc5 {[%emt 0:00:05]} 18. Rfd1 {[%emt 0:00:43]} Rfe8 {[%emt 0:00:13]} 19. Nc3 {[%emt 0:01:53]} g6 {[%emt 0:00:35]} 20. f3 {[%emt 0:00:16]} Ra6 {[%emt 0:00:42]} 21. b3 {[%emt 0:01:35]} Kg7 {[%emt 0:00:05]} 22. Kf2 {[%emt 0:00:15]} h5 {[%emt 0:00:03]} 23. Ke2 {[%emt 0:01:40]} h4 {[%emt 0:00:07]} 24. Rd8 {[%emt 0:00:26]} Ra8 {[%emt 0:00:01]} 25. Rxe8 {[%emt 0:00:32]} Rxe8 {[%emt 0:00:02]} 26. Ne4 {[%emt 0:00:12]} Nxe4 {[%emt 0:00:20]} 27. fxe4 {[%emt 0:00:01]} Kf6 {[%emt 0:00:41]} 28. Rd7 {[%emt 0:00:04]} Rb8 {[%emt 0:00:25]} 29. c5 {[%emt 0:00:22]} Ke6 {[%emt 0:00:03]} 30. Rd6+ {[%emt 0:00:02]} Ke7 {[%emt 0:00:03]} 31. Kf3 {[%emt 0:00:25]} a4 {[%emt 0:00:52]} 32. b4 {[%emt 0:01:52]} a3 {[%emt 0:00:01]} 33. b5 {[%emt 0:00:45]} cxb5 {[%emt 0:01:03]} 34. Rb6 {[%emt 0:00:02]} Kd7 {[%emt 0:00:11]} 35. Rxb5 {[%emt 0:00:12]} Kc6 {[%emt 0:00:01]} 36. Ra5 {[%emt 0:00:24]} Rd8 {[%emt 0:00:01]} 37. Rxa3 {[%emt 0:00:29]} Rd2 {[%emt 0:00:16]} 38. Ra8 {[%emt 0:00:31]} Kxc5 {[%emt 0:00:09]} 39. a4 {[%emt 0:00:05]} h3 {[%emt 0:00:25]} 40. gxh3 {[%emt 0:00:15]} Rxh2 {[%emt 0:00:02]} 41. Kg3 {[%emt 0:00:13]} Ra2 {[%emt 0:00:17]} 42. Kf3 {[%emt 0:00:48]} b6 {[%emt 0:00:18]} 43. h4 {[%emt 0:00:16]} Ra1 {[%emt 0:00:30]} 44. Kg3 {[%emt 0:00:12]} Kc6 {[%emt 0:00:22]} 45. Kg2 {[%emt 0:00:09]} Ra3 {[%emt 0:00:18]} 46. Kf3 {[%emt 0:00:08]} Kc5 {[%emt 0:00:07]} 47. Ra7 {[%emt 0:00:05]} Ra1 {[%emt 0:00:18]} 48. Kg2 {[%emt 0:00:08]} b5 {[%emt 0:00:02]} 49. Rc7+ {[%emt 0:00:31]} Kd6 {[%emt 0:00:21]} 50. Rxf7 {[%emt 0:00:06]} Ke6 {[%emt 0:00:01]} 51. Rb7 {[%emt 0:00:19]} bxa4 {[%emt 0:00:01]} 52. Rb6+ {[%emt 0:00:06]} Kf7 {[%emt 0:00:01]} 53. Rb5 {[%emt 0:00:08]} Kf6 {[%emt 0:00:27]} 54. Rb6+ {[%emt 0:00:01]} Kf7 {[%emt 0:00:14]} 55. Rb5 {[%emt 0:00:02]} Re1 {[%emt 0:00:15]} 56. Kf2 {[%emt 0:00:35]} Rh1 {[%emt 0:00:05]} 57. Ra5 {[%emt 0:00:10]} Rxh4 {[%emt 0:00:14]} 58. Rxa4 {[%emt 0:00:00]} Kf6 {[%emt 0:00:08]} 59. Ra6+ {[%emt 0:00:09]} Kg5 {[%emt 0:00:04]} 60. Kf3 {[%emt 0:00:05]} Rh3+ {[%emt 0:00:02]} 61. Kf2 {[%emt 0:00:05]} Rh2+ {[%emt 0:00:30]} 62. Kg3 {[%emt 0:00:02]} Rh5 {[%emt 0:00:12]} 63. Re6 {[%emt 0:00:02]} Kh6 {[%emt 0:00:00]} 64. Kg4 {[%emt 0:00:03]} Kg7 {[%emt 0:00:02]} 65. Ra6 {[%emt 0:00:08]} Rh1 {[%emt 0:00:16]} 66. Re6 {[%emt 0:00:05]} Rh5 {[%emt 0:00:07]} 67. Ra6 {[%emt 0:00:01]} Kh7 {[%emt 0:00:03]} 68. Ra7+ {[%emt 0:00:02]} Kh6 {[%emt 0:00:01]} 69. Re7 {[%emt 0:00:02]} Rg5+ {[%emt 0:00:03]} 70. Kh4 {[%emt 0:00:03]} Rh5+ {[%emt 0:00:21]} 71. Kg4 {[%emt 0:00:03]} Rg5+ {[%emt 0:00:17]} 72. Kh4 {[%emt 0:00:01]} Rg1 {[%emt 0:00:02]} 73. Rxe5 {[%emt 0:00:09]} g5+ {[%emt 0:00:04]} 74. Kh3 {[%emt 0:00:04]} Kh5 {[%emt 0:00:01]} 75. Ra5 {[%emt 0:01:04]} Rh1+ {[%emt 0:00:36]} 76. Kg3 {[%emt 0:00:06]} Rg1+ {[%emt 0:00:05]} 77. Kf2 {[%emt 0:00:13]} Rb1 {[%emt 0:00:05]} 78. e5 {[%emt 0:00:14]} Rb6 {[%emt 0:00:02]} 79. Ra4 {[%emt 0:00:06]} Re6 {[%emt 0:00:14]} 80. Re4 {[%emt 0:00:03]} Kg6 {[%emt 0:00:02]} 81. Kg3 {[%emt 0:00:13]} Kf5 {[%emt 0:00:03]} 82. Kf3 {[%emt 0:00:06]} Ra6 {[%emt 0:00:04]} 83. e6 {[%emt 0:00:09]} Rxe6 {[%emt 0:00:01]} 84. Rxe6 {[%emt 0:00:02]} Kxe6 {[%emt 0:00:02]} 85. Ke4 {[%emt 0:00:03]} Kf6 {[%emt 0:00:04]} 86. Kf3 {[%emt 0:00:03]} Kf5 {[%emt 0:00:01]} 87. Kg3 {[%emt 0:00:02]} Ke4 {[%emt 0:00:02]} 88. Kf2 {[%emt 0:00:03]} g4 {[%emt 0:00:02]} 89. Kg3 {[%emt 0:00:02]} Kxe3 {[%emt 0:00:01]} 90. Kxg4 {[%emt 0:00:02]} 0-1

[Event "RUS-ch Men Rapid 2019"]
[Site "Sochi"]
[Date "2019.10.15"]
[Round "1.19"]
[White "Rozum, Ivan"]
[Black "Semukhin, Mihail"]
[Result "1-0"]
[ECO "A20"]
[WhiteElo "2551"]
[BlackElo "2029"]
[Annotator "ChessBase"]
[PlyCount "79"]
[EventDate "2019.10.15"]
[EventType "swiss"]
[EventCountry "RUS"]
[SourceTitle "playchess.com"]
[Source "ChessBase"]
[SourceQuality "1"]
[TimeControl "900+10"]

1. c4 {[%emt 0:00:00]} e5 {[%emt 0:01:24]} 2. d3 {[%emt 0:00:00]} Nc6 {[%emt 0:00:03]} 3. Nc3 {[%emt 0:00:08]} Bc5 {[%emt 0:00:04]} 4. g3 {[%emt 0:00:16]} d6 {[%emt 0:00:04]} 5. Bg2 {[%emt 0:00:02]} a6 {[%emt 0:00:03]} 6. e3 {[%emt 0:00:06]} Nge7 {[%emt 0:00:14]} 7. Nge2 {[%emt 0:00:02]} h5 {[%emt 0:00:02]} 8. d4 {[%emt 0:00:17]} Ba7 {[%emt 0:00:28]} 9. h3 {[%emt 0:00:09]} h4 {[%emt 0:00:19]} 10. g4 {[%emt 0:00:02]} f5 {[%emt 0:00:37]} 11. gxf5 {[%emt 0:00:31]} Bxf5 {[%emt 0:03:27]} 12. d5 {[%emt 0:00:15]} Nb8 {[%emt 0:00:07]} 13. Be4 {[%emt 0:00:57]} Nd7 {[%emt 0:00:30]} 14. Bxf5 {[%emt 0:00:29]} Nxf5 {[%emt 0:00:02]} 15. Ne4 {[%emt 0:00:03]} Qe7 {[%emt 0:02:40]} 16. N2c3 {[%emt 0:00:03]} O-O-O {[%emt 0:00:57]} 17. Qg4 {[%emt 0:00:02]} Rdf8 {[%emt 0:00:51]} 18. Bd2 {[%emt 0:00:02]} Kb8 {[%emt 0:00:18]} 19. O-O-O {[%emt 0:00:21]} Nc5 {[%emt 0:02:39]} 20. Nxc5 {[%emt 0:00:57]} Bxc5 {[%emt 0:00:01]} 21. Ne4 {[%emt 0:00:01]} Nh6 {[%emt 0:00:49]} 22. Qe2 {[%emt 0:01:58]} Rf5 {[%emt 0:00:55]} 23. Rdg1 {[%emt 0:00:14]} Rhf8 {[%emt 0:00:07]} 24. Rg6 {[%emt 0:00:06]} Rf3 {[%emt 0:00:36]} 25. Be1 {[%emt 0:02:03]} Qd7 {[%emt 0:00:19]} 26. Re6 {[%emt 0:00:07]} Qf7 {[%emt 0:00:20]} 27. Nxc5 {[%emt 0:02:04]} dxc5 {[%emt 0:00:03]} 28. Rxe5 {[%emt 0:00:01]} Rf5 {[%emt 0:00:24]} 29. f4 {[%emt 0:01:04]} Re8 {[%emt 0:00:33]} 30. Bc3 {[%emt 0:00:09]} Rfxe5 {[%emt 0:00:08]} 31. fxe5 {[%emt 0:00:08]} Nf5 {[%emt 0:00:14]} 32. Qf2 {[%emt 0:00:22]} Qh5 {[%emt 0:00:11]} 33. e6 {[%emt 0:00:26]} Ng3 {[%emt 0:00:07]} 34. Re1 {[%emt 0:00:22]} Ne4 {[%emt 0:00:11]} 35. Qf7 {[%emt 0:01:49]} Qxf7 {[%emt 0:00:03]} 36. exf7 {[%emt 0:00:01]} Rf8 {[%emt 0:00:05]} 37. Rf1 {[%emt 0:00:01]} Nd6 {[%emt 0:00:26]} 38. Bxg7 {[%emt 0:00:05]} Rxf7 {[%emt 0:00:02]} 39. Rxf7 {[%emt 0:00:02]} Nxf7 {[%emt 0:00:01]} 40. Bf6 {[%emt 0:00:02]} 1-0

[Event "RUS-ch Men Rapid 2019"]
[Site "Sochi"]
[Date "2019.10.15"]
[Round "1.20"]
[White "Mrykhin, Igor"]
[Black "Morozevich, Alexander"]
[Result "0-1"]
[ECO "B06"]
[WhiteElo "2019"]
[BlackElo "2550"]
[Annotator "ChessBase"]
[PlyCount "55"]
[EventDate "2019.10.15"]
[EventType "swiss"]
[EventCountry "RUS"]
[SourceTitle "playchess.com"]
[Source "ChessBase"]
[SourceQuality "1"]
[TimeControl "900+10"]

1. e4 {[%emt 0:00:00]} g6 {[%emt 0:00:06]} 2. d4 {[%emt 0:00:00]} Bg7 {[%emt 0:00:01]} 3. c3 {[%emt 0:00:23]} Nf6 {[%emt 0:00:02]} 4. Bd3 {[%emt 0:00:05]} O-O {[%emt 0:00:22]} 5. Nf3 {[%emt 0:00:09]} d5 {[%emt 0:00:08]} 6. Nbd2 {[%emt 0:00:47]} c5 {[%emt 0:01:01]} 7. e5 {[%emt 0:01:14]} Nfd7 {[%emt 0:00:06]} 8. O-O {[%emt 0:00:13]} Nc6 {[%emt 0:00:02]} 9. Bc2 {[%emt 0:01:06]} cxd4 {[%emt 0:03:04]} 10. cxd4 {[%emt 0:00:04]} f6 {[%emt 0:00:01]} 11. exf6 {[%emt 0:02:07]} Nxf6 {[%emt 0:00:02]} 12. h3 {[%emt 0:00:27]} Nh5 {[%emt 0:00:44]} 13. Nb3 {[%emt 0:00:22]} Qd6 {[%emt 0:00:28]} 14. Re1 {[%emt 0:00:33]} Nf4 {[%emt 0:00:30]} 15. Bxf4 {[%emt 0:00:28]} Rxf4 {[%emt 0:00:14]} 16. Qe2 {[%emt 0:00:53]} a5 {[%emt 0:00:31]} 17. Rad1 {[%emt 0:00:15]} a4 {[%emt 0:00:57]} 18. Nc5 {[%emt 0:01:16]} Nxd4 {[%emt 0:00:58]} 19. Nxd4 {[%emt 0:00:49]} Bxd4 {[%emt 0:00:02]} 20. Nd3 {[%emt 0:01:13]} Rf7 {[%emt 0:00:42]} 21. Kh1 {[%emt 0:00:45]} Bf5 {[%emt 0:01:58]} 22. f3 {[%emt 0:01:15]} Qg3 {[%emt 0:03:16]} 23. Nb4 {[%emt 0:00:19]} Bxh3 {[%emt 0:00:57]} 24. Nxd5 {[%emt 0:00:48]} Bf2 {[%emt 0:00:27]} 25. Rg1 {[%emt 0:01:02]} Bg4 {[%emt 0:00:59]} 26. Nxe7+ {[%emt 0:00:33]} Kg7 {[%emt 0:00:04]} 27. Qxf2 {[%emt 0:00:33]} Qxf2 {[%emt 0:00:01]} 28. Ra1 0-1

[Event "RUS-ch Men Rapid 2019"]
[Site "Sochi"]
[Date "2019.10.15"]
[Round "1.21"]
[White "Khismatullin, Denis"]
[Black "Levonyan, Karen"]
[Result "1-0"]
[ECO "A40"]
[WhiteElo "2550"]
[BlackElo "2009"]
[Annotator "ChessBase"]
[PlyCount "43"]
[EventDate "2019.10.15"]
[EventType "swiss"]
[EventCountry "RUS"]
[SourceTitle "playchess.com"]
[Source "ChessBase"]
[SourceQuality "1"]
[TimeControl "900+10"]

1. d4 {[%emt 0:00:00]} Nf6 {[%emt 0:00:00]} 2. c4 {[%emt 0:00:00]} e6 {[%emt 0:00:00]} 3. g3 {[%emt 0:00:28]} Bb4+ {[%emt 0:00:00]} 4. Bd2 {[%emt 0:00:53]} Qe7 {[%emt 0:00:01]} 5. Bg2 {[%emt 0:00:29]} O-O {[%emt 0:00:27]} 6. Nf3 {[%emt 0:01:27]} d5 {[%emt 0:00:18]} 7. O-O {[%emt 0:00:09]} Bxd2 {[%emt 0:00:20]} 8. Nbxd2 {[%emt 0:00:11]} b6 {[%emt 0:00:54]} 9. cxd5 {[%emt 0:00:32]} exd5 {[%emt 0:00:14]} 10. Rc1 {[%emt 0:00:01]} c5 {[%emt 0:00:20]} 11. dxc5 {[%emt 0:00:57]} bxc5 {[%emt 0:00:01]} 12. e4 {[%emt 0:00:36]} dxe4 {[%emt 0:01:55]} 13. Ng5 {[%emt 0:00:24]} Bb7 {[%emt 0:00:09]} 14. Re1 {[%emt 0:01:21]} Re8 {[%emt 0:02:14]} 15. Ndxe4 {[%emt 0:00:27]} Nxe4 {[%emt 0:01:38]} 16. Bxe4 {[%emt 0:01:18]} Bxe4 {[%emt 0:00:32]} 17. Rxe4 {[%emt 0:00:21]} Qd7 {[%emt 0:00:32]} 18. Qd5 {[%emt 0:02:21]} Rxe4 {[%emt 0:00:25]} 19. Qxe4 {[%emt 0:00:04]} Qc6 {[%emt 0:02:41]} 20. Qxh7+ {[%emt 0:00:15]} Kf8 {[%emt 0:00:02]} 21. Re1 {[%emt 0:00:08]} Qh6 {[%emt 0:00:01]} 22. Qg8+ {[%emt 0:00:03]} 1-0

[Event "RUS-ch Men Rapid 2019"]
[Site "Sochi"]
[Date "2019.10.15"]
[Round "1.22"]
[White "Zhakamukhov, Eduard"]
[Black "Papin, Vasily"]
[Result "0-1"]
[ECO "B40"]
[WhiteElo "2007"]
[BlackElo "2541"]
[Annotator "ChessBase"]
[PlyCount "74"]
[EventDate "2019.10.15"]
[EventType "swiss"]
[EventCountry "RUS"]
[SourceTitle "playchess.com"]
[Source "ChessBase"]
[SourceQuality "1"]
[TimeControl "900+10"]

1. e4 {[%emt 0:00:00]} c5 {[%emt 0:00:00]} 2. Nf3 {[%emt 0:00:00]} e6 {[%emt 0:00:00]} 3. b3 {[%emt 0:00:00]} b6 {[%emt 0:00:01]} 4. d4 {[%emt 0:00:00]} cxd4 {[%emt 0:00:05]} 5. Nxd4 {[%emt 0:00:00]} Bb7 {[%emt 0:00:01]} 6. Bd3 {[%emt 0:01:16]} Qf6 {[%emt 0:03:49]} 7. c3 {[%emt 0:01:16]} Bc5 {[%emt 0:00:11]} 8. Bb2 {[%emt 0:02:10]} Nc6 {[%emt 0:00:48]} 9. Nf3 {[%emt 0:01:09]} Ne5 {[%emt 0:02:01]} 10. O-O {[%emt 0:01:38]} Ne7 {[%emt 0:01:47]} 11. Nxe5 {[%emt 0:00:54]} Qxe5 {[%emt 0:00:01]} 12. Nd2 {[%emt 0:00:10]} Ng6 {[%emt 0:00:33]} 13. b4 {[%emt 0:00:56]} Be7 {[%emt 0:00:11]} 14. g3 {[%emt 0:01:11]} O-O {[%emt 0:00:11]} 15. Qe2 {[%emt 0:00:53]} Qc7 {[%emt 0:00:45]} 16. f4 {[%emt 0:00:48]} Rac8 {[%emt 0:00:09]} 17. h4 {[%emt 0:00:38]} Rfd8 {[%emt 0:00:55]} 18. h5 {[%emt 0:00:29]} Nf8 {[%emt 0:00:02]} 19. Ba6 {[%emt 0:00:02]} Bxa6 {[%emt 0:02:00]} 20. Qxa6 {[%emt 0:00:01]} h6 {[%emt 0:00:01]} 21. Qe2 {[%emt 0:00:29]} Nh7 {[%emt 0:00:28]} 22. a3 {[%emt 0:00:24]} e5 {[%emt 0:00:26]} 23. c4 {[%emt 0:00:23]} Bf6 {[%emt 0:00:14]} 24. Qf3 {[%emt 0:00:43]} exf4 {[%emt 0:00:38]} 25. Bxf6 Nxf6 {[%emt 0:00:01]} 26. gxf4 {[%emt 0:00:06]} d6 {[%emt 0:00:02]} 27. Rf2 {[%emt 0:00:21]} Re8 {[%emt 0:00:09]} 28. Re2 {[%emt 0:00:53]} b5 {[%emt 0:00:20]} 29. c5 {[%emt 0:00:59]} Rcd8 {[%emt 0:02:58]} 30. Rc1 {[%emt 0:00:39]} dxc5 {[%emt 0:00:37]} 31. Rxc5 {[%emt 0:00:43]} Qb6 {[%emt 0:00:01]} 32. Qf2 {[%emt 0:00:08]} Rd3 33. e5 {[%emt 0:00:34]} Nxh5 {[%emt 0:00:45]} 34. Re3 {[%emt 0:00:19]} Qg6+ {[%emt 0:00:13]} 35. Kh2 {[%emt 0:00:13]} Nxf4 {[%emt 0:00:07]} 36. Rg3 {[%emt 0:00:18]} Qh5+ {[%emt 0:00:08]} 37. Kg1 {[%emt 0:00:02]} Rxg3+ {[%emt 0:00:01]} 0-1

[Event "RUS-ch Men Rapid 2019"]
[Site "Sochi"]
[Date "2019.10.15"]
[Round "1.23"]
[White "Gutenev, Alexander"]
[Black "Mochalov, Dmitriy"]
[Result "1-0"]
[ECO "C70"]
[WhiteElo "2539"]
[BlackElo "1988"]
[Annotator "ChessBase"]
[PlyCount "84"]
[EventDate "2019.10.15"]
[EventType "swiss"]
[EventCountry "RUS"]
[SourceTitle "playchess.com"]
[Source "ChessBase"]
[SourceQuality "1"]
[TimeControl "900+10"]

1. e4 {[%emt 0:00:00]} e5 {[%emt 0:00:06]} 2. Nf3 {[%emt 0:00:00]} Nc6 {[%emt 0:00:02]} 3. Bb5 {[%emt 0:00:00]} a6 {[%emt 0:00:08]} 4. Ba4 {[%emt 0:00:00]} b5 {[%emt 0:00:01]} 5. Bb3 {[%emt 0:00:00]} Nf6 {[%emt 0:00:04]} 6. O-O {[%emt 0:00:02]} Be7 {[%emt 0:00:06]} 7. d3 {[%emt 0:00:03]} d6 {[%emt 0:00:06]} 8. a3 {[%emt 0:00:03]} O-O {[%emt 0:00:05]} 9. Nc3 {[%emt 0:00:03]} Na5 {[%emt 0:00:09]} 10. Ba2 {[%emt 0:00:01]} c5 {[%emt 0:00:02]} 11. Bg5 {[%emt 0:00:05]} h6 {[%emt 0:00:12]} 12. Bxf6 {[%emt 0:00:02]} Bxf6 {[%emt 0:00:02]} 13. Nd5 {[%emt 0:00:02]} Be6 {[%emt 0:00:14]} 14. h3 {[%emt 0:00:15]} Nc6 {[%emt 0:00:06]} 15. c3 {[%emt 0:00:05]} Rc8 {[%emt 0:01:03]} 16. Qd2 {[%emt 0:00:45]} Bxd5 {[%emt 0:01:41]} 17. Bxd5 {[%emt 0:03:14]} Ne7 {[%emt 0:00:16]} 18. Ba2 {[%emt 0:00:04]} Ng6 {[%emt 0:00:45]} 19. a4 {[%emt 0:00:21]} Bg5 {[%emt 0:00:26]} 20. Qd1 {[%emt 0:01:40]} b4 {[%emt 0:00:21]} 21. a5 {[%emt 0:00:14]} Kh8 {[%emt 0:01:05]} 22. Bc4 {[%emt 0:00:13]} Ra8 {[%emt 0:01:24]} 23. cxb4 {[%emt 0:00:30]} cxb4 {[%emt 0:00:07]} 24. d4 {[%emt 0:00:01]} exd4 {[%emt 0:01:13]} 25. Nxd4 {[%emt 0:00:11]} Bf6 {[%emt 0:02:14]} 26. Bd5 {[%emt 0:00:11]} Rc8 {[%emt 0:00:56]} 27. Nc6 {[%emt 0:00:28]} Qd7 {[%emt 0:00:02]} 28. Nxb4 {[%emt 0:00:22]} Bxb2 {[%emt 0:00:45]} 29. Ra2 {[%emt 0:00:33]} Be5 {[%emt 0:00:20]} 30. Nxa6 {[%emt 0:00:58]} Nf4 {[%emt 0:00:01]} 31. Nb4 {[%emt 0:05:45]} Rc3 {[%emt 0:00:10]} 32. Qg4 {[%emt 0:00:37]} f5 {[%emt 0:00:43]} 33. exf5 {[%emt 0:00:06]} Qb5 {[%emt 0:00:26]} 34. Bf3 {[%emt 0:01:58]} Qxb4 {[%emt 0:00:09]} 35. a6 {[%emt 0:00:17]} h5 {[%emt 0:00:08]} 36. Qg5 {[%emt 0:00:49]} Rxf3 {[%emt 0:00:09]} 37. a7 {[%emt 0:00:12]} Ra3 {[%emt 0:00:07]} 38. Rxa3 {[%emt 0:00:33]} Qxa3 {[%emt 0:00:01]} 39. f6 {[%emt 0:00:11]} Rxf6 {[%emt 0:00:21]} 40. Kh1 {[%emt 0:00:09]} Qxa7 {[%emt 0:01:15]} 41. g3 {[%emt 0:00:01]} Qa6 {[%emt 0:00:09]} 42. Rc1 {[%emt 0:00:08]} Qb7+ {[%emt 0:00:03]} 1-0

[Event "RUS-ch Men Rapid 2019"]
[Site "Sochi"]
[Date "2019.10.15"]
[Round "1.24"]
[White "Pedashenko, Anatoly"]
[Black "Drygalov, Andrey"]
[Result "0-1"]
[ECO "B50"]
[WhiteElo "1982"]
[BlackElo "2538"]
[Annotator "ChessBase"]
[PlyCount "80"]
[EventDate "2019.10.15"]
[EventType "swiss"]
[EventCountry "RUS"]
[SourceTitle "playchess.com"]
[Source "ChessBase"]
[SourceQuality "1"]
[TimeControl "900+10"]

1. e4 {[%emt 0:00:00]} c5 {[%emt 0:00:00]} 2. Nf3 {[%emt 0:00:00]} d6 {[%emt 0:00:00]} 3. c3 {[%emt 0:00:00]} Nf6 {[%emt 0:00:00]} 4. Be2 {[%emt 0:00:00]} g6 {[%emt 0:00:00]} 5. O-O {[%emt 0:00:07]} Bg7 {[%emt 0:00:00]} 6. Re1 {[%emt 0:00:08]} O-O {[%emt 0:00:04]} 7. Bf1 {[%emt 0:00:14]} Nc6 {[%emt 0:00:12]} 8. h3 {[%emt 0:00:22]} e5 {[%emt 0:00:37]} 9. d3 {[%emt 0:00:16]} h6 {[%emt 0:00:09]} 10. Nbd2 {[%emt 0:00:21]} Be6 {[%emt 0:00:06]} 11. a3 {[%emt 0:00:59]} a5 {[%emt 0:00:34]} 12. a4 {[%emt 0:00:37]} Qc7 {[%emt 0:00:01]} 13. Nc4 {[%emt 0:00:15]} Rfe8 {[%emt 0:00:04]} 14. Na3 {[%emt 0:00:20]} Rad8 {[%emt 0:00:06]} 15. Nb5 {[%emt 0:00:03]} Qb8 {[%emt 0:00:16]} 16. Be3 {[%emt 0:00:14]} b6 {[%emt 0:00:34]} 17. Qd2 {[%emt 0:00:35]} Kh7 {[%emt 0:00:06]} 18. g4 {[%emt 0:01:04]} d5 {[%emt 0:00:38]} 19. g5 {[%emt 0:00:14]} Nxe4 {[%emt 0:00:12]} 20. dxe4 {[%emt 0:00:07]} dxe4 {[%emt 0:00:02]} 21. Qe2 {[%emt 0:00:34]} exf3 {[%emt 0:00:26]} 22. Qxf3 {[%emt 0:00:02]} Bd5 {[%emt 0:01:35]} 23. Qg3 {[%emt 0:00:25]} h5 {[%emt 0:00:05]} 24. Bg2 {[%emt 0:01:42]} Bxg2 {[%emt 0:00:08]} 25. Qxg2 {[%emt 0:00:01]} Ne7 {[%emt 0:00:02]} 26. Rad1 {[%emt 0:00:15]} Nf5 {[%emt 0:00:07]} 27. Bc1 {[%emt 0:01:11]} e4 {[%emt 0:00:20]} 28. Rxd8 {[%emt 0:02:41]} Qxd8 {[%emt 0:00:02]} 29. Bf4 {[%emt 0:00:09]} Nh4 {[%emt 0:00:01]} 30. Qf1 {[%emt 0:00:14]} Nf3+ {[%emt 0:00:01]} 31. Kg2 {[%emt 0:00:10]} Nxe1+ {[%emt 0:00:03]} 32. Qxe1 {[%emt 0:00:05]} Qd7 {[%emt 0:00:45]} 33. Nd6 {[%emt 0:00:29]} Re6 {[%emt 0:00:02]} 34. Nxe4 {[%emt 0:00:39]} Qxa4 {[%emt 0:00:02]} 35. f3 {[%emt 0:00:02]} Qc2+ {[%emt 0:00:01]} 36. Kg3 {[%emt 0:00:14]} Qxb2 {[%emt 0:00:08]} 37. Qd1 {[%emt 0:00:36]} Rxe4 {[%emt 0:00:03]} 38. fxe4 {[%emt 0:00:04]} Qxc3+ {[%emt 0:00:02]} 39. Kg2 {[%emt 0:00:13]} Qd4 {[%emt 0:00:41]} 40. Qb1 {[%emt 0:00:20]} a4 {[%emt 0:00:05]} 0-1

[Event "RUS-ch Men Rapid 2019"]
[Site "Sochi"]
[Date "2019.10.15"]
[Round "1.25"]
[White "Zakhartsov, Vladimir"]
[Black "Kryzhanovskiy, Mikhail"]
[Result "1-0"]
[ECO "D35"]
[WhiteElo "2527"]
[BlackElo "1978"]
[Annotator "ChessBase"]
[PlyCount "71"]
[EventDate "2019.10.15"]
[EventType "swiss"]
[EventCountry "RUS"]
[SourceTitle "playchess.com"]
[Source "ChessBase"]
[SourceQuality "1"]
[TimeControl "900+10"]

1. d4 {[%emt 0:00:00]} Nf6 {[%emt 0:00:00]} 2. c4 {[%emt 0:00:00]} e6 {[%emt 0:00:00]} 3. Nc3 {[%emt 0:00:00]} d5 {[%emt 0:00:00]} 4. cxd5 {[%emt 0:00:00]} exd5 {[%emt 0:00:00]} 5. Bg5 {[%emt 0:00:01]} Be7 {[%emt 0:00:09]} 6. e3 {[%emt 0:00:04]} O-O {[%emt 0:00:38]} 7. Bd3 {[%emt 0:00:11]} Re8 {[%emt 0:01:42]} 8. Nge2 {[%emt 0:00:28]} c6 {[%emt 0:02:23]} 9. Qc2 {[%emt 0:00:09]} h6 {[%emt 0:00:09]} 10. Bh4 {[%emt 0:00:13]} Nbd7 {[%emt 0:01:07]} 11. O-O {[%emt 0:00:06]} Nf8 {[%emt 0:01:52]} 12. f3 {[%emt 0:00:31]} c5 {[%emt 0:01:48]} 13. Qd2 {[%emt 0:00:41]} cxd4 {[%emt 0:02:26]} 14. Nxd4 {[%emt 0:00:22]} Bc5 {[%emt 0:01:30]} 15. Rfe1 {[%emt 0:00:50]} Ng6 {[%emt 0:00:43]} 16. Bxg6 {[%emt 0:00:47]} fxg6 {[%emt 0:00:02]} 17. Nb3 {[%emt 0:00:03]} g5 {[%emt 0:00:37]} 18. Bxg5 {[%emt 0:00:15]} hxg5 {[%emt 0:01:02]} 19. Nxc5 {[%emt 0:00:01]} g4 {[%emt 0:00:05]} 20. f4 {[%emt 0:00:09]} b6 {[%emt 0:00:06]} 21. Nb3 {[%emt 0:00:11]} Bb7 {[%emt 0:00:08]} 22. Rad1 {[%emt 0:00:19]} Qd7 {[%emt 0:01:01]} 23. Nd4 {[%emt 0:00:07]} Rad8 {[%emt 0:00:05]} 24. Qf2 {[%emt 0:00:58]} a6 {[%emt 0:00:39]} 25. f5 {[%emt 0:00:23]} Re5 {[%emt 0:00:20]} 26. Ne6 {[%emt 0:00:41]} Re8 {[%emt 0:00:08]} 27. e4 {[%emt 0:00:09]} Qd6 {[%emt 0:00:17]} 28. Qd4 {[%emt 0:00:31]} b5 {[%emt 0:00:14]} 29. Rf1 {[%emt 0:00:36]} b4 {[%emt 0:00:11]} 30. Nxd5 {[%emt 0:00:02]} Bxd5 {[%emt 0:00:19]} 31. Rde1 {[%emt 0:00:27]} Re7 {[%emt 0:00:18]} 32. exd5 {[%emt 0:00:07]} Rxd5 {[%emt 0:00:02]} 33. Qc4 {[%emt 0:00:23]} Kh8 {[%emt 0:00:10]} 34. Re2 {[%emt 0:00:36]} a5 {[%emt 0:00:03]} 35. Ng5 {[%emt 0:01:36]} Rxe2 {[%emt 0:00:07]} 36. Nf7+ 1-0